Cogmind - Beta 15 @@@ ROGUE MODE // 2025.06.23 @ 02:08:02 Player: Ladmageddon Result: Destroyed by Y-45 Defender with Beam Rifle Performance ------------- Evolutions (2) 1000 Regions Visited (4) 800 Robots Destroyed (21) 105 Value Destroyed (485) 485 Prototype IDs (1) 20 Alien Tech Used (0) 0 Bonus (0) 0 TOTAL SCORE: 2410 Bonus ------- None Cogmind --------- Core Integrity 0/550 Matter 193/300 Energy 100/100 System Corruption 0% Temperature Cool (9) Movement Core (200) Ox3 Location -8/Materials Parts ------- > --- POWER (1) -------- (None) > --- PROPULSION (4) --- (None) > --- UTILITY (4) ------ Medium Storage Unit Improved Power Shielding > --- WEAPON (2) ------- (None) > --- INVENTORY (10) --- Improved Ion Engine Improved Ion Engine Improved Ion Engine Medium Storage Unit Peak State ------------ > --- POWER ------------ Improved Ion Engine > --- PROPULSION ------- (None) > --- UTILITY ---------- Medium Storage Unit Improved Power Shielding Decoy Drone Bay > --- WEAPON ----------- Flak Cannon Rocket Launcher > --- INVENTORY -------- Improved Ion Engine Improved Ion Engine Improved Ion Engine Medium Storage Unit Improved Power Shielding Reflective Plating [Rating: 26] Favorites ----------- Power Light Ion Engine Engine Light Ion Engine Propulsion Improved Treads Treads Improved Treads Utility Medium Storage Unit Device Sensor Array Storage Medium Storage Unit Protection Improved Power Shielding Weapon EM Pulse Gun Energy Gun EM Pulse Gun Ballistic Gun Assault Rifle Ballistic Cannon Flak Cannon Launcher Shock Bomb Launcher Special Weapon Mining Laser Build | -11 -10 -9 -9 -8 ------- Run | Yrd Mat Mat Min Mat Slots Evolved 4 | . . 2 . 2 Power . | . . . . . Propulsion 2 | . . 2 . . Utility 2 | . . . . 2 Weapon . | . . . . . Parts Attached 27 | 6 3 5 7 6 Power 5 | 1 . . 3 1 Engine 4 | 1 . . 2 1 Core 1 | . . . 1 . Reactor . | . . . . . Propulsion 6 | 2 . 4 . . Treads 6 | 2 . 4 . . Leg . | . . . . . Wheel . | . . . . . Hover . | . . . . . Flight . | . . . . . Utility 7 | 1 2 . 1 3 Device 2 | . 1 . . 1 Storage 2 | 1 1 . . . Processor . | . . . . . Hackware . | . . . . . Protection 3 | . . . 1 2 Artifact . | . . . . . Weapon 9 | 2 1 1 3 2 Energy Gun 3 | 2 . . 1 . Energy Cannon . | . . . . . Ballistic Gun 1 | . 1 . . . Ballistic Cannon 1 | . . . . 1 Launcher 2 | . . 1 . 1 Special Weapon 2 | . . . 2 . Impact Weapon . | . . . . . Slashing Weapon . | . . . . . Piercing Weapon . | . . . . . Special Melee Weapon . | . . . . . Unidentified Prototypes 1 | . . . . 1 Parts Lost 20 | . 1 . 13 6 Power 5 | . . . 4 1 Propulsion 4 | . . . 4 . Utility 4 | . . . 1 3 Weapon 7 | . 1 . 4 2 Highest Loss Streak 8 | . 1 . 8 6 To Critical Strikes . | . . . . . Average Backups 5 | 3 4 7 5 4 Power 1 | . 1 1 1 2 Propulsion . | 1 2 1 . . Utility 2 | . . 2 3 2 Weapon . | . . 1 . . Tool/Special . | . . . . . Unused Backups 7 | . . 2 1 4 Power 3 | . . . . 3 Propulsion 2 | . . 2 . . Utility 1 | . . . . 1 Weapon 1 | . . . 1 . Tool/Special . | . . . . . Average Slot Usage (%) 71 | . 95 92 73 34 Engine 10 | . 14 11 10 6 Treads 23 | . 28 36 29 . Device 9 | . 9 11 9 7 Storage 11 | . 14 11 11 9 Protection 2 | . . . . 9 Energy Gun 6 | . 25 5 3 . Ballistic Gun 4 | . 2 11 4 . Launcher 1 | . . 5 . 1 Special Weapon 1 | . . . 3 . Peak Build Rating 26 | 6 7 17 17 26 Average Rating 12 | 4 6 12 11 18 On Entrance 7 | . 6 7 17 5 Naked Turns . | . . . . . Heaviest Build 43 | 12 18 22 22 43 Greatest Support 92 | 40 40 92 92 3 Greatest Overweight (x) 14 | . . . 3 14 Average Overweight (x) 1 | . . . . 8 Largest Inventory Capacity 10 | 8 10 10 10 10 Average Capacity 9 | 6 9 10 10 10 Most Carried 10 | 5 6 10 10 7 Average Carried 5 | 4 4 7 6 4 Final Capacity 10 | 8 10 10 10 10 Final Carried 10 | 4 4 10 4 4 Class Distribution -------------------- 100% | Mutant Dominant Class ---------------- Mutant | -10/Materials Mutant | -9/Materials Mutant | -9/Mines Mutant | -8/Materials Resources | -11 -10 -9 -9 -8 ----------- Run | Yrd Mat Mat Min Mat Matter Collected 495 | 160 112 179 44 . Remotely . | . . . . . Salvage Created 602 | 116 201 212 73 . Parts 38 | 4 8 12 14 . Haulers Intercepted . | . . . . . Recyclers Shooed . | . . . . . Parts Field Recycled . | . . . . . Retrieved Matter . | . . . . . Parts Self-Destructed . | . . . . . Prevented . | . . . . . Kills | -11 -10 -9 -9 -8 ------- Run | Yrd Mat Mat Min Mat Combat Hostiles Destroyed 14 | . 4 4 6 . Melee 1 | . . . 1 . Guns 11 | . 3 4 4 . Cannons 1 | . . . 1 . Classes Destroyed 7 | 2 2 1 2 . Worker 2 | . . . 1 1 Tunneler 2 | 1 . . 1 . Recycler 1 | 1 . . . . Operator 2 | . 1 1 . . Swarmer 4 | . . . 4 . Grunt 8 | . 4 3 1 . Sentry 1 | . . 1 . . Best Kill Streak 4 | 2 2 2 4 1 Combat Bots Only 4 | . 2 2 4 . Max Kills in Single Turn 1 | 1 1 1 1 1 Gunslinging . | . . . . . Exploded . | . . . . . Melee 1 | . . . 1 . Uniques/NPCs Destroyed 1 | . . . 1 . YI-UF0 (-9/Mines) Combat | -11 -10 -9 -9 -8 -------- Run | Yrd Mat Mat Min Mat Hostile Shots Fired 277 | . 23 43 69 142 Missed 85 | . 8 15 21 41 Hits 192 | . 15 28 48 101 Melee 3 | . . . 3 . Projectile 189 | . 15 28 45 101 AOE 18 | . . . 18 . Critical Strikes 5 | . . 1 . 4 Actively Blocked 1 | . . . . 1 Damage Taken 3255 | . 204 415 1149 1487 Core 989 | . 54 94 284 557 Absorbed by Shields . | . . . . . Redirected to Shielding 120 | . . . . 120 Ignored by Resistances 34 | . . . . 34 Core Remaining (%) 61 | 100 78 . 5 . Volleys Fired 109 | 9 19 32 40 9 Largest 2 | 2 2 2 2 1 Hottest 100 | 80 80 60 100 37 Shots Fired 163 | 18 35 49 52 9 Gun 123 | 18 35 45 25 . Cannon 5 | . . . . 5 Launcher 8 | . . 4 . 4 Special 27 | . . . 27 . Kinetic 50 | . 1 32 12 5 Thermal 27 | . . . 27 . Explosive 4 | . . . . 4 Electromagnetic 82 | 18 34 17 13 . Robot Hit Streak 10 | 4 10 5 6 5 Robot Miss Streak 4 | 4 1 2 3 4 Penetration Max . | . . . . . Secondary Targets 2 | . 1 . 1 . Max Gunslinging Chain 1 | . 1 . 1 . Shots Hit Robots 76 | 9 26 21 15 5 Core Hits 33 | 3 8 9 7 6 Critical Kills . | . . . . . Critical Parts Destroyed . | . . . . . Critical Strikes . | . . . . . Melee Attacks . | . . . . . Impact . | . . . . . Slashing . | . . . . . Piercing . | . . . . . Sneak Attacks . | . . . . . Combat Hostiles . | . . . . . Follow-up Attacks . | . . . . . Damage Inflicted 1361 | 134 412 324 230 261 Guns 878 | 134 342 238 164 . Cannons 168 | . . . . 168 Explosions 247 | . 70 86 . 91 Melee . | . . . . . Ramming 20 | . . . 18 2 Kinetic 435 | . . 180 87 168 Thermal 118 | . 70 . 48 . Explosive 91 | . . . . 91 Electromagnetic 697 | 134 342 144 77 . Impact . | . . . . . Slashing . | . . . . . Piercing . | . . . . . Highest Corruption 8 | . . 1 8 . Average Corruption 1 | . . 1 1 . Corruption Purged . | . . . . . Corruption Blocked . | . . . . . Effects 9 | . . 1 8 . Message Errors 3 | . . 1 2 . Matter Fused 3 | . . . 3 . Heat Flow Errors 1 | . . . 1 . Parts Fused 1 | . . . 1 . Alerts 1 | . . . 1 . Overload Shots . | . . . . . Overflow Damage 2 | . 2 . . . Projectiles . | . . . . . Explosions 2 | . 2 . . . Melee . | . . . . . Knockbacks 2 | . . . . 2 Impact . | . . . . . Kinetic 2 | . . . . 2 Secondary . | . . . . . Self-Inflicted Damage 76 | . 37 31 . 8 Shots 5 | . 1 3 . 1 Rammed 11 | . . . 9 2 Targets Rammed 14 | . . . 12 2 Kicked . | . . . . . Crushed 3 | . . . 3 . Highest Temperature 204 | 144 204 22 188 4 Average Temperature 60 | 70 90 8 46 2 Received Heat Transfer 900 | . 90 171 90 549 Effects 2 | . 2 . . . Interference 2 | . 2 . . . Siege Activations . | . . . . . Martial Activations . | . . . . . Shielding Activations . | . . . . . Robots Disrupted . | . . . . . Combat Hostiles . | . . . . . Robots Corrupted 1 | . 1 . . . Combat Hostiles 1 | . 1 . . . Parts Fried 4 | 1 3 . . . Impact Corruptions . | . . . . . Robots Melted . | . . . . . Combat Hostiles . | . . . . . Parts Melted . | . . . . . Heat Transferred 200 | . 100 . 100 . Parts Sabotaged . | . . . . . Parts Stolen . | . . . . . Parts Stripped . | . . . . . Power Chain Reactions 2 | . 2 . . . Alert | -11 -10 -9 -9 -8 ------- Run | Yrd Mat Mat Min Mat Maximum Alert Level . | . . . . . Low Security (%) 100 | 100 100 100 100 100 Level 1 . | . . . . . Level 2 . | . . . . . Level 3 . | . . . . . Level 4 . | . . . . . Level 5 . | . . . . . High Security . | . . . . . Max Security . | . . . . . Peak Influence 95 | 5 73 50 95 64 Initial 17 | . . 17 8 . Average 12 | . 16 14 13 7 Influence Increases 527 | 10 136 145 136 100 Destroy 0b10 Robot/C 260 | . 80 80 100 . Destroy 0b10 Robot/NC 35 | 10 5 5 10 5 Destroy Leader 70 | . 30 30 10 . Disable Machine 90 | . 15 30 15 30 Destroy Structure 42 | . 6 . 1 35 Lose Combat Pursuer 30 | . . . . 30 Influence Decreases 527 | 10 93 165 159 100 Entered New Map 41 | . . 26 15 . Time Decay 416 | 10 83 139 121 63 Lost Part 70 | . 10 . 23 37 Squads Dispatched 7 | . 3 1 . 3 Investigation 1 | . 1 . . . Extermination . | . . . . . Reinforcement 4 | . 2 1 . 1 Assault . | . . . . . Garrison 2 | . . . . 2 Intercept . | . . . . . Searches Triggered . | . . . . . Construction Impeded 1 | . . . . 1 Haulers Reinforced . | . . . . . Active Scanning Responses . | . . . . . Cargo Convoy Interrupts . | . . . . . Stealth | -11 -10 -9 -9 -8 --------- Run | Yrd Mat Mat Min Mat Distress Signals 1 | . . . . 1 Communications Jammed . | . . . . . Distress Signals . | . . . . . Times Spotted 32 | . 6 7 8 11 Peak Tracking Total 8 | . 3 2 4 8 Tactical Retreats 2 | . . . . 2 Traps | -11 -10 -9 -9 -8 ------- Run | Yrd Mat Mat Min Mat Traps Triggered 1 | . 1 . . . Indirectly . | . . . . . Trap Hack Attempts . | . . . . . Triggered . | . . . . . Disarmed . | . . . . . Reprogrammed . | . . . . . Reused . | . . . . . Traps Extracted . | . . . . . Installed . | . . . . . Triggered . | . . . . . Machines | -11 -10 -9 -9 -8 ---------- Run | Yrd Mat Mat Min Mat Machines Disabled 6 | . 1 2 1 2 Max in Single Turn 2 | . 1 1 1 2 Machines Repaired . | . . . . . Machines Dismantled . | . . . . . Machines Sabotaged . | . . . . . Overloaded Fab Kills . | . . . . . Hacking | -11 -10 -9 -9 -8 --------- Run | Yrd Mat Mat Min Mat Machines Accessed 1 | . . . 1 . Terminals . | . . . . . Fabricators . | . . . . . Repair Stations . | . . . . . Recycling Units . | . . . . . Scanalyzers . | . . . . . Garrison Access . | . . . . . Total Hacks 1 | . . . 1 . Successful 1 | . . . 1 . Failed . | . . . . . Catastrophic . | . . . . . Database Lockouts . | . . . . . Manual . | . . . . . Terminals . | . . . . . Fabricators . | . . . . . Repair Stations . | . . . . . Recycling Units . | . . . . . Scanalyzers . | . . . . . Garrison Access . | . . . . . Terminal Hacks 1 | . . . 1 . Open Door 1 | . . . 1 . Fabricator Hacks . | . . . . . Repair Station Hacks . | . . . . . Recycling Unit Hacks . | . . . . . Scanalyzer . | . . . . . Garrison Access Hacks . | . . . . . Unauthorized Hacks . | . . . . . Terminals . | . . . . . Fabricators . | . . . . . Repair Stations . | . . . . . Recycling Units . | . . . . . Scanalyzers . | . . . . . Garrison Access . | . . . . . Data Cores Recovered . | . . . . . Used . | . . . . . Hacking Detections . | . . . . . Full Trace Events . | . . . . . Feedback Events . | . . . . . Feedback Blocked . | . . . . . Robot Schematics Acquired . | . . . . . Robots Built . | . . . . . Authchips . | . . . . . Time . | . . . . . Total Robot Build Rating . | . . . . . Part Schematics Acquired . | . . . . . Parts Built . | . . . . . Authchips . | . . . . . Time . | . . . . . Total Part Build Rating . | . . . . . Parts Repaired . | . . . . . Time . | . . . . . Parts Recycled . | . . . . . Recycled Matter . | . . . . . Retrieved Matter . | . . . . . Retrieved Components . | . . . . . Parts Scanalyzed . | . . . . . Part Schematics Acquired . | . . . . . Parts Damaged . | . . . . . Bothacking | -11 -10 -9 -9 -8 ------------ Run | Yrd Mat Mat Min Mat Used RIF Installer . | . . . . . Robots Hacked . | . . . . . Non-combat . | . . . . . Combat . | . . . . . Robot Hacks Applied . | . . . . . Relay Couplers Released . | . . . . . Fabnet Peak Effective % . | . . . . . Robots Rewired . | . . . . . Allies Hacked . | . . . . . Hacks Repelled . | . . . . . Allies | -11 -10 -9 -9 -8 -------- Run | Yrd Mat Mat Min Mat Total Allies . | . . . . . Largest Group . | . . . . . Highest-Rated Group . | . . . . . Highest-Rated Ally . | . . . . . Total Orders . | . . . . . Ally Attacks . | . . . . . Total Damage . | . . . . . Kills . | . . . . . Allies Corrupted . | . . . . . Allies Melted . | . . . . . Intel | -11 -10 -9 -9 -8 ------- Run | Yrd Mat Mat Min Mat Active Infowar (turns) 1402 | . 216 445 741 . Sensors 1402 | . 216 445 741 . Robot Analysis Total . | . . . . . Derelict Logs Recovered 1 | . . . 1 . Drone Launches . | . . . . . Drone Recoveries . | . . . . . Exploration | -11 -10 -9 -9 -8 ------------- Run | Yrd Mat Mat Min Mat Turns Passed 2306 | 85 384 473 824 540 Spaces Moved 906 | 34 132 233 402 105 Core 129 | 8 . . 16 105 Treads 777 | 26 132 233 386 . Legs . | . . . . . Wheels . | . . . . . Hover . | . . . . . Flight . | . . . . . Fastest Speed 50 | 50 160 160 160 200 Average Speed 195 | 134 160 160 161 470 Slowest Speed 750 | 160 160 160 200 750 Overloaded Moves . | . . . . . Propulsion Burnouts . | . . . . . Robots Hopped . | . . . . . Potential Cave-ins 12 | . . . 12 . Cave-ins Triggered 1 | . . . 1 . Exploration Rate (%) 28 | 3 35 20 72 13 Regions Visited 4 Branch Regions 1 Pre-discovered Areas 1 | . . . 1 . Known Exits Taken . | . . . . . Unknown Exits Taken 4 | 1 1 1 1 . Scrap Searched 2 | . . . 2 . Spaces Dug 19 | . . . 19 . Terrain Destroyed 71 | . 6 . 20 45 Melee . | . . . . . Projectile 20 | . . . 20 . AOE 51 | . 6 . . 45 Terrain Rammed . | . . . . . Walls Destroyed . | . . . . . Machines Disabled . | . . . . . Actions | -11 -10 -9 -9 -8 --------- Run | Yrd Mat Mat Min Mat Total 1209 | 53 270 285 465 136 Wait 120 | . 113 . . 7 Move 902 | 33 131 232 401 105 Hop . | . . . . . Pick Up 29 | 5 3 12 2 7 Fast Attach 5 | 5 . . . . Attach 18 | 1 2 2 7 6 Detach . | . . . . . Swap 4 | . 1 3 . . Drop 8 | . 1 4 3 . Fire 109 | 9 19 32 40 9 Melee . | . . . . . Ram 2 | . . . . 2 Kick . | . . . . . Crush 12 | . . . 12 . Escape Stasis . | . . . . . Rewire . | . . . . . Trap . | . . . . . Miscellaneous . | . . . . . Route ------- -11/Scrapyard -10/Materials -9/Materials -9/Mines (discovered 2 exits: [*Mat x2]) -8/Materials History --------- Turn | Location | Event 11 | -11/Scrapyard | Discovered new exit (range 16) 86 | -11/Scrapyard | Entered Materials 317 | -10/Materials | Build established: Mutant 444 | -10/Materials | Discovered new exit (range 13) 470 | -10/Materials | Entered another Materials area 470 | -9/Materials | Evolved 2 slots: Propulsion x2 929 | -9/Materials | Discovered new exit (range 10) 943 | -9/Materials | Entered Mines 1006 | -9/Mines | Found the Drone Emporium 1014 | -9/Mines | Found Prototype Device 1166 | -9/Mines | Found a hidden stash of uninstalled traps 1276 | -9/Mines | Discovered new exit (range 13) 1288 | -9/Mines | Destroyed YI-UF0 1305 | -9/Mines | Lost 8 parts (3p2n3w) 1544 | -9/Mines | Crushed by falling debris 1544 | -9/Mines | Core integrity fell below 50% 1665 | -9/Mines | Learned location of Zion (-6) 1677 | -9/Mines | Discovered new exit (range 6) 1708 | -9/Mines | Core integrity fell below 20% 1766 | -9/Mines | Lost 5 parts (1p2n1u1w) 1767 | -9/Mines | Entered Materials 1767 | -8/Materials | Evolved 2 slots: Utility x2 1775 | -8/Materials | Identified Decoy Drone Bay 2203 | -8/Materials | Garrison activated, responded to threat 2265 | -8/Materials | Core integrity fell below 50% 2293 | -8/Materials | Lost 6 parts (1p3u2w) 2293 | -8/Materials | Core integrity fell below 20% 2307 | -8/Materials | Destroyed by Y-45 Defender with Beam Rifle Last Messages --------------- K-01 Serf collects debris. Imp. Power Shielding destroyed. M-13 Machinist repairs G-47 Trooper. Critical hit (Destroy). Reflective Plating destroyed. Imp. Ion Engine destroyed. K-01 Serf collects debris. U-05 Engineer builds a Door. K-01 Serf collects debris. U-05 Engineer lays Concrete. K-01 Serf collects debris. U-05 Engineer lays Concrete. K-01 Serf collects debris. U-05 Engineer lays Concrete. W-25 Informer sends out distress signal. U-05 Engineer lays Concrete. U-05 Engineer builds a Wall. Slammed into U-05 Engineer. K-01 Serf collects debris. U-05 Engineer lays Concrete. Map ----- +----------------------------------------------------+ | ????????????????????????????????????????? | | ????????????????????????????????????????? | | ????????????????????????????????????????? | | ????????????????????????????????????????? | | ????????????????????????????????????????? | | ????????????????????????????????????????? | | ????????????????????????????????????????? | | ????????????????????????????????????????? | | ????????????????????????????????????????? | | ????????????????????????????????????????? | | ????????????????????????????????????????? | | ????????????????????????????????????????? | | ????????????????? ??????????????????????? | | ????????????????? #?????????????????????? | | ????????????????? #?????????????????????? | | ???????????????## ###???????????????????? | | ???????????????? #???????????????????? | | ???????????????? ????????????????????? | | ???????????????? ????????????????????? | | ???????????????? ?????????????????????? | | ???????????????? ?????????????????????? | | ???????????????##+###???????????????????? | | ???????????????# % #???????????????????? | | ???????????????# % !#???????????????????? | | ???????????????# ###########?????????? | | ???????????????# # """@""" #?????????? | | ??????????????## # """ """ #?????????? | | ???????????### # # """g""" #?????????? | | ??????????## #* # Y #?????????? | | ??????????# # # # #?????????? | | ?????????## ##/#### *Y #?????????? | | ?????????# # #?????????? | | ?????????# g# ! #?????????? | | ?????????# ### ###g#####?????????? | | ?????????# # """ ??????????? | | ?????????# + "Y" ??????????? | | ?????????# # " " ""???????????? | | ?????????# # """ ????????? | | ?????????# # """ ????????? | | ?????????# #???????? | | ???????###### +???????? | | ???????# ## # """ """ #???????? | | ???????# ## ### """ """ #???????? | | ???????# " ## ### """ """ #???????? | | ???????# """ # #???????? | | ???????# "" + +???????? | | ???????# """ # #???????? | | ???????# "" #+######+## #### #???????? | | ???????# """ # # #????????????? | | ???????# """ # # #????????????? | +----------------------------------------------------+ Best States ------------- Heat Dissipation 31 Energy Generation 12 Energy Capacity 265 Matter Stores 300 Matter Capacity 300 Sight Range 16 Robot Scan Range 14 Terrain Scan Density 10 Armor Coverage 150 Resistance: TH 10 Power Shielding 66 Evasion (%) 50 Recoil Reduction 4 Item Schematics ----------------- None Robot Schematics ------------------ None Fabricated ------------ Nothing Repaired ---------- Nothing Alien Tech Used ----------------- None Achievements -------------- None Challenges ------------ None Game ------ Seed TransportShadingStreamer Manual? 0 Play Time 00:19:54 Cumulative 18.0 hours Start 2025.06.23 @ 01:50:39 End 2025.06.23 @ 02:08:02 Sessions 1 Manual Loads 0 Difficulty Rogue Special Mode None Game No. 42 Rogue 39 Adventurer 3 Explorer 0 Win Type - Total 0 Types 0/0/0/0/0/0/0/0/0/0 Lore% 12 Gallery% 24 Achievement% 22 Wizard Run 0 Options --------- Layout 1 ASCII 0 Keyboard 0 Movement Mouse Keybinds 0 Fullscreen 1 Font 16/SmallcapsGlow Map View 25x20 Zoom Use 100% Tactical HUD 0 Map Filters NONE Filters NONE Steam SD RUN: 6737ac91-f8b3-4f0d-81dc-20ca9cafd4cc